[Event "Super United Croatia GCT Blitz 2022"]
[Site "Zagreb"]
[Date "2022.07.23"]
[Round "1"]
[White "Carlsen, Magnus"]
[Black "Van Foreest, Jorden"]
[Result "1-0"]
[ECO "C65"]
[WhiteElo "2864"]
[BlackElo "2678"]
[Annotator "TA"]
[PlyCount "81"]
[EventDate "2022.07.20"]
[EventType "tourn"]
[EventCountry "CRO"]
[SourceTitle "playchess.com"]
[Source "ChessBase"]
[SourceQuality "1"]
[TimeControl "300+2"]

{[%evp 9,81,32,19,10,14,0,27,23,30,22,31,28,31,29,32,0,0,0,0,0,0,0,12,11,9,2,16,13,23,10,28,24,34,27,31,30,71,69,109,113,118,115,104,-83,114,114,106,108,104,114,124,128,361,118,674,651,649,658,677,684,678,650,705,647,920,917,1188,1181,1181,1154,1039,1086,1379,1379]} 1. e4 {[%emt 0:00:20]} e5 {[%emt 0:00:01]} 2. Nf3 {[%emt 0:00:02]} Nc6 {[%emt 0:00:02]} 3. Bb5 {[%emt 0:00:02]} Nf6 {[%emt 0:00:02]} 4. d3 {[%emt 0:00:03]} Bc5 {[%emt 0:00:01]} 5. Bxc6 {[%emt 0:00:01]} dxc6 {[%emt 0:00:02]} 6. Qe2 {[%emt 0:00:02] C65: Ruy Lopez: Berlin Defence (3...Nf6), unusual lines and 4 0-0 Bc5.} Qe7 {[%emt 0:00:15]} 7. h3 {[%emt 0:00:02] 7.Be3 is a critical line.} h6 {[%emt 0:00:20]} 8. Nbd2 {[%emt 0:00:06] [#] White has an edge.} Bd6 $146 {[%emt 0:00:07]} ({Predecessor:} 8... O-O 9. Nc4 Bd6 10. g4 Nd7 11. h4 Nc5 12. Rg1 Ne6 13. Be3 Nf4 14. Bxf4 exf4 {1-0 (36) Sedlak,N (2561)-Pavlovic,M (2448) Zupanja 2007}) 9. Nc4 {[%emt 0:00:07]} Nd7 {[%emt 0:00:16]} 10. Bd2 {[%emt 0:00:41]} b6 {[%emt 0:00:02]} 11. O-O-O {[%emt 0:00:08]} Ba6 {[%emt 0:00:17]} 12. Ne3 {[%emt 0:00:12]} g6 {[%emt 0:00:02]} 13. Kb1 {[%emt 0:00:14]} O-O-O {[%emt 0:00:03]} 14. Bc3 {[%emt 0:00:10]} h5 {[%emt 0:00:18]} 15. Nd2 {[%emt 0:00:04]} Nc5 {[%emt 0:00:22]} 16. Ndc4 {[%emt 0:00:12]} f6 {[%emt 0:00:25]} 17. h4 {[%emt 0:00:26]} Kb8 {[%emt 0:00:07]} 18. g3 {[%emt 0:00:08]} Na4 {[%emt 0:00:05]} 19. Bd2 {[%emt 0:00:02]} Qe6 {[%emt 0:00:09]} 20. Rhe1 {[%emt 0:00:27]} Rhe8 {[%emt 0:00:21]} 21. Qf1 {[%emt 0:00:02]} Bf8 {[%emt 0:00:09]} 22. f4 {[%emt 0:00:19]} exf4 {[%emt 0:00:09]} 23. gxf4 {[%emt 0:00:01]} f5 {[%emt 0:00:20] [#]} 24. exf5 {[%emt 0:00:26]} gxf5 {[%emt 0:00:08]} 25. b3 {[%emt 0:00:17]} Nc5 {[%emt 0:00:09]} 26. Ng4 $2 {[%emt 0:00:02] [#]} hxg4 {[%emt 0:00:51]} 27. Rxe6 $16 {[%emt 0:00:02]} Nxe6 {[%emt 0:00:01]} 28. Ne5 {[%emt 0:00:06]} Bb7 {[%emt 0:00:01]} 29. h5 {[%emt 0:00:10] aiming for Re1.} c5 {[%emt 0:00:01]} 30. Re1 {[%emt 0:00:03]} Nd4 $2 {[%emt 0:00:06] [#]} (30... Bg7 $16 {was necessary.}) 31. Bc3 $2 {[%emt 0:00:04]} (31. Nd7+ $1 $18 {[%mdl 512] and the rest is easy.} Ka8 (31... Kc8 32. Rxe8) 32. Rxe8 Rxe8 33. Nxf8 Rxf8 34. Qe1) 31... Nf3 $2 {[%emt 0:00:02][%mdl 8192] [#]} (31... g3 $16) 32. Nd7+ $1 $18 {[%emt 0:00:12][%mdl 512] White is clearly winning.} Kc8 {[%emt 0:00:03]} 33. Rxe8 {[%emt 0:00:02]} Rxe8 {[%emt 0:00:02]} 34. Nxf8 {[%emt 0:00:03]} Rxf8 {[%emt 0:00:21]} 35. h6 {[%emt 0:00:04]} Rf7 {[%emt 0:00:01]} 36. Qe2 {[%emt 0:00:05][%cal Re2e8]} Bd5 {[%emt 0:00:05]} 37. Bg7 {[%emt 0:00:04]} Kb7 {[%emt 0:00:09]} 38. h7 {[%emt 0:00:05]} Rxg7 {[%emt 0:00:01]} 39. h8=Q {[%emt 0:00:02]} Rg8 {[%emt 0:00:14]} 40. Qh7 {[%emt 0:00:08] Black must now prevent c4.} g3 {[%emt 0:00:00] [#]} 41. Qxg8 $3 {[%emt 0:00:02] Weighted Error Value: White=0.27 (precise) /Black=0.57} 1-0

[Event "Super United Croatia GCT Blitz 2022"]
[Site "Zagreb"]
[Date "2022.07.23"]
[Round "1"]
[White "Firouzja, Alireza"]
[Black "Topalov, Veselin"]
[Result "0-1"]
[ECO "C90"]
[WhiteElo "2793"]
[BlackElo "2728"]
[Annotator "TA"]
[PlyCount "104"]
[EventDate "2022.07.20"]
[EventType "tourn"]
[EventCountry "CRO"]
[SourceTitle "playchess.com"]
[Source "ChessBase"]
[SourceQuality "1"]
[TimeControl "300+2"]

{[%evp 25,104,0,0,0,6,0,0,-33,0,-20,-13,-24,-20,-29,-18,-22,-29,-34,-12,-4,-6,-23,0,-10,0,-12,-14,-64,-11,-13,-20,-14,-13,-38,-27,-44,-25,-70,-8,-11,-4,-3,-5,-5,0,0,0,0,14,14,15,2,8,2,11,0,0,0,0,-6,0,0,0,-17,0,0,0,0,0,0,0,0,0,0,0,-31,-37,-52,-38,-48,-37]} 1. e4 {[%emt 0:00:01]} e5 {[%emt 0:00:01]} 2. Nf3 {[%emt 0:00:01]} Nc6 {[%emt 0:00:01]} 3. Bb5 {[%emt 0:00:01]} a6 {[%emt 0:00:02]} 4. Ba4 {[%emt 0:00:02]} Nf6 {[%emt 0:00:02]} 5. O-O {[%emt 0:00:02]} Be7 {[%emt 0:00:01]} 6. Re1 {[%emt 0:00:01]} b5 {[%emt 0:00:02]} 7. Bb3 {[%emt 0:00:01]} O-O {[%emt 0:00:01]} 8. d3 {[%emt 0:00:13]} d6 {[%emt 0:00:05]} 9. c3 {[%emt 0:00:02]} Na5 {[%emt 0:00:01]} 10. Bc2 {[%emt 0:00:01]} c5 {[%emt 0:00:01]} 11. Nbd2 {[%emt 0:00:10]} Nc6 {[%emt 0:00:03]} 12. Nf1 {[%emt 0:00:04]} Re8 {[%emt 0:00:02] 12...h6 is the modern continuation.} 13. h3 {[%emt 0:00:04]} h6 {[%emt 0:00:08]} 14. Ne3 {[%emt 0:00:10] C90: Closed Ruy Lopez with 7...d6: Early deviations.} Be6 {[%emt 0:00:06]} 15. a3 {[%emt 0:00:02]} Bf8 {[%emt 0:00:12]} 16. b4 {[%emt 0:00:06] [#] The position is equal.} Rb8 $146 {[%emt 0:00:07]} ({Predecessor:} 16... d5 17. exd5 Nxd5 18. Nxd5 Qxd5 19. Be3 Bf5 20. bxc5 Bxc5 21. Bb3 Qd6 22. d4 exd4 23. Nxd4 Nxd4 24. cxd4 {½-½ (85) Bologan,V (2682)-Fressinet,L (2624) Bastia 2005}) 17. Rb1 {[%emt 0:00:09]} d5 {[%emt 0:00:16]} 18. exd5 {[%emt 0:00:15]} Nxd5 {[%emt 0:00:01]} 19. Nxd5 {[%emt 0:00:09]} Bxd5 {[%emt 0:00:02]} 20. Be3 {[%emt 0:00:36]} cxb4 {[%emt 0:00:05]} 21. axb4 {[%emt 0:00:02]} a5 {[%emt 0:00:03]} 22. bxa5 {[%emt 0:00:06]} Qxa5 {[%emt 0:00:01]} 23. Bd2 {[%emt 0:00:05]} b4 {[%emt 0:00:13]} 24. Bb3 {[%emt 0:00:54]} Bxb3 {[%emt 0:01:17]} 25. Rxb3 {[%emt 0:00:01]} Qd5 {[%emt 0:00:25]} 26. Qc2 {[%emt 0:00:23]} (26. cxb4 $11 Nxb4 27. Qb1) 26... bxc3 {[%emt 0:00:10]} (26... Rbc8 $15 27. c4 Qd6) 27. Rxb8 $11 {[%emt 0:00:02]} Rxb8 {[%emt 0:00:03]} 28. Bxc3 {[%emt 0:00:02]} f6 {[%emt 0:00:11]} 29. Re4 {[%emt 0:00:37]} Qb3 {[%emt 0:00:38]} 30. Qd2 {[%emt 0:00:04]} Rd8 {[%emt 0:00:06]} 31. Rg4 {[%emt 0:00:21]} Qb1+ {[%emt 0:00:12]} (31... Ne7 $15 32. Rb4 Qd5) 32. Ne1 {[%emt 0:00:01][%cal Bf3e1,Be1c2,Bc2e3][%mdl 32]} Kh7 {[%emt 0:00:19]} 33. Rc4 {[%emt 0:00:04]} Qb5 {[%emt 0:00:03]} 34. Qe2 {[%emt 0:00:16]} Qd5 {[%emt 0:00:01]} 35. Nc2 {[%emt 0:00:06]} Ne7 {[%emt 0:00:33]} 36. d4 {[%emt 0:00:03]} Ng6 {[%emt 0:00:01]} 37. Ne3 {[%emt 0:00:17]} Qb5 {[%emt 0:00:10] [#] aiming for ...exd4.} 38. Qc2 {[%emt 0:00:13]} exd4 {[%emt 0:00:08]} 39. Bxd4 {[%emt 0:00:01]} Rb8 {[%emt 0:00:08]} 40. Qd2 {[%emt 0:00:18]} Qb1+ {[%emt 0:00:02]} 41. Rc1 {[%emt 0:00:01]} Qe4 {[%emt 0:00:01]} 42. f3 {[%emt 0:00:04]} Qe6 {[%emt 0:00:03]} (42... Qf4 {with more complications.} 43. Kf2 Rd8 44. Rc4 Qg5) 43. Qd3 {[%emt 0:00:11]} Rd8 {[%emt 0:00:01]} 44. h4 {[%emt 0:00:04] [#] Threatens to win with h5.} Kg8 $1 {[%emt 0:00:00] And now ...Nf4 would win.} 45. Qxg6 {[%emt 0:00:02] Strongly threatening Qd3.} Rxd4 {[%emt 0:00:01]} 46. Nf5 {[%emt 0:00:01]} Rxh4 {[%emt 0:00:05][%cal Of8c5] ( -> ...Bc5+!)} 47. Kf2 {[%emt 0:00:03]} Qb6+ {[%emt 0:00:01]} 48. Kg3 {[%emt 0:00:01]} Qb8+ {[%emt 0:00:08]} 49. Kxh4 {[%emt 0:00:03] Threatening mate with Kh3.} Qf4+ {[%emt 0:00:01]} 50. Qg4 {[%emt 0:00:03]} Qxc1 {[%emt 0:00:02] Black is slightly better.} 51. Ng3 {[%emt 0:00:02]} Qc5 {[%emt 0:00:02]} 52. Kh3 {[%emt 0:00:01]} Qg5 {[%emt 0:00:01] Weighted Error Value: White=0.09 (flawless) /Black=0.11 (very precise)} 0-1

[Event "Super United Croatia GCT Blitz 2022"]
[Site "Zagreb"]
[Date "2022.07.23"]
[Round "1"]
[White "Nepomniachtchi, Ian"]
[Black "Dominguez Perez, Leinier"]
[Result "1-0"]
[ECO "C36"]
[WhiteElo "2766"]
[BlackElo "2754"]
[Annotator "TA"]
[PlyCount "60"]
[EventDate "2022.07.20"]
[EventType "tourn"]
[EventCountry "CRO"]
[SourceTitle "playchess.com"]
[Source "ChessBase"]
[SourceQuality "1"]
[TimeControl "300+2"]

{[%evp 11,60,0,-5,-7,0,-2,0,4,6,0,11,0,0,0,0,0,0,0,0,0,0,0,-1,0,0,-6,0,0,0,-7,-7,-4,-6,-32,-35,-61,-10,-69,-51,-53,-60,-64,-48,-43,0,0,110,127,118,117,116]} 1. e4 {[%emt 0:00:00]} e5 {[%emt 0:00:02]} 2. f4 {[%emt 0:00:02]} d5 {[%emt 0:00:04]} 3. exd5 {[%emt 0:00:01]} exf4 {[%emt 0:00:02]} 4. Nf3 {[%emt 0:00:01]} Nf6 {[%emt 0:00:02]} 5. Bb5+ {[%emt 0:00:01]} c6 {[%emt 0:00:02]} 6. dxc6 {[%emt 0:00:01]} Nxc6 {[%emt 0:00:02]} 7. Nc3 {[%emt 0:00:01] C36: King's Gambit Accepted: 3 Nf3 d5.} Bd6 {[%emt 0:00:05]} 8. Qe2+ {[%emt 0:00:02]} Be6 {[%emt 0:00:01]} 9. Nd4 {[%emt 0:00:04] The position is equal.} Qd7 {[%emt 0:00:11]} 10. Nxe6 {[%emt 0:00:05]} fxe6 {[%emt 0:00:01]} 11. d4 {[%emt 0:00:02] [#] aiming for d5.} O-O {[%emt 0:00:24]} 12. Bd2 {[%emt 0:00:02]} Rae8 {[%emt 0:01:18]} 13. O-O-O {[%emt 0:00:03]} a6 {[%emt 0:00:01]} (13... Nxd4 $2 14. Bxd7 Nxe2+ 15. Nxe2 $18) 14. Bxc6 {[%emt 0:00:02]} Qxc6 {[%emt 0:00:02]} 15. Rhe1 {[%emt 0:00:01] [#]} b5 $146 {[%emt 0:00:34]} ({Predecessor:} 15... Nd5 16. Ne4 Bb8 17. Kb1 e5 18. c4 Nb6 19. Bb4 Rf7 20. Bc5 Nd7 21. d5 Qg6 {1-0 (55) Nepomniachtchi,I (2773)-Mitusov,S (2304) Chess.com INT 2022}) 16. Ne4 {[%emt 0:00:02]} Nxe4 {[%emt 0:00:18]} 17. Qxe4 {[%emt 0:00:01]} Qd5 {[%emt 0:00:01]} 18. Kb1 {[%emt 0:00:38]} Qxe4 {[%emt 0:00:25]} (18... Rf5 {seems wilder.} 19. h3 Kf7 20. c3 h6) 19. Rxe4 {[%emt 0:00:01]} f3 {[%emt 0:00:01]} 20. g3 {[%emt 0:00:17]} e5 {[%emt 0:00:05] With the idea ...exd4.} 21. d5 {[%emt 0:00:23]} Bc5 {[%emt 0:00:38]} 22. Rf1 {[%emt 0:00:05]} Rd8 {[%emt 0:00:36]} 23. Rxe5 {[%emt 0:00:19]} Bd4 {[%emt 0:00:01]} (23... f2 $15) 24. Rg5 {[%emt 0:01:14]} (24. Re4 $11 Rxd5 25. Bb4) 24... h6 {[%emt 0:00:19]} 25. Rg4 {[%emt 0:00:04]} Rxd5 {[%emt 0:00:01]} 26. c3 {[%emt 0:00:12]} Bb6 {[%emt 0:00:33]} 27. Bxh6 {[%emt 0:00:02]} Rf7 {[%emt 0:00:04] [#] Threatens to win with ...f2.} (27... Rd7 $5 {[%cal Rf3f2]} 28. Rg6 Bc5 $15) 28. Rg6 {[%emt 0:00:38]} Kh7 {[%emt 0:00:01]} 29. Rxb6 $16 {[%emt 0:00:50]} gxh6 {[%emt 0:00:01]} 30. Kc2 {[%emt 0:00:01] Against Rd2+} ({Don't play} 30. Rxa6 $6 Re5 31. Rd6 Re2 $11) 30... Re5 {[%emt 0:00:05] Weighted Error Value: White=0.09 (flawless) /Black=0.17 (very precise)} 1-0

[Event "Super United Croatia GCT Blitz 2022"]
[Site "Zagreb"]
[Date "2022.07.23"]
[Round "1"]
[White "Vachier-Lagrave, Maxime"]
[Black "Saric, Ivan"]
[Result "1-0"]
[ECO "E60"]
[WhiteElo "2760"]
[BlackElo "2680"]
[Annotator "TA"]
[PlyCount "65"]
[EventDate "2022.07.20"]
[EventType "tourn"]
[EventCountry "CRO"]
[SourceTitle "playchess.com"]
[Source "ChessBase"]
[SourceQuality "1"]
[TimeControl "300+2"]

{[%evp 9,65,28,39,21,30,0,28,18,31,0,19,11,45,6,23,16,36,25,21,-37,0,0,0,0,0,0,0,0,0,0,7,0,0,0,48,-12,-18,-54,-62,-62,-39,-120,-122,-108,-127,-103,0,-302,188,189,1566,1419,1997,1982,29991,29992,29994,29995]} 1. c4 {[%emt 0:00:01]} g6 {[%emt 0:00:01]} 2. d4 {[%emt 0:00:05]} Nf6 {[%emt 0:00:01]} 3. h4 {[%emt 0:00:06]} Bg7 {[%emt 0:00:04]} 4. Nc3 {[%emt 0:00:03]} d6 {[%emt 0:00:01]} 5. e4 {[%emt 0:00:02]} h5 {[%emt 0:00:20]} 6. Nge2 {[%emt 0:00:13] E60: King's Indian: Unusual lines and Fianchetto Variation without Nc3.} O-O {[%emt 0:00:08] [#]} 7. Bg5 $146 {[%emt 0:00:08]} ({Predecessor:} 7. Ng3 Nc6 8. f3 e5 9. d5 Nd4 10. Bg5 c5 11. Bd3 Qb6 12. Qd2 Nh7 13. Be3 Qd8 {1-0 (50) Maevsky,N (2337)-Sapunov,E (2461) Chess.com INT 2021}) 7... Nbd7 {[%emt 0:00:31]} 8. Qd2 {[%emt 0:00:10] White has an edge.} c5 {[%emt 0:00:22]} 9. d5 {[%emt 0:00:01]} b5 {[%emt 0:00:12]} 10. cxb5 {[%emt 0:00:03]} a6 {[%emt 0:00:01]} 11. Ng3 {[%emt 0:00:02]} Qa5 {[%emt 0:00:16]} 12. a4 {[%emt 0:00:09]} Ne5 {[%emt 0:00:13]} 13. Ra3 {[%emt 0:00:04]} Qb4 {[%emt 0:00:07]} 14. Be2 {[%emt 0:00:16]} (14. Na2 $11 Qxd2+ 15. Kxd2) 14... axb5 {[%emt 0:00:18]} 15. axb5 {[%emt 0:00:12]} Rxa3 {[%emt 0:00:07]} 16. bxa3 {[%emt 0:00:01]} Qxa3 {[%emt 0:00:01]} 17. O-O {[%emt 0:00:02]} Bb7 {[%emt 0:00:27]} 18. Rb1 {[%emt 0:00:09]} Ra8 {[%emt 0:00:08]} 19. Qc2 {[%emt 0:00:14]} c4 {[%emt 0:00:18]} 20. Bc1 {[%emt 0:00:13]} Qc5 {[%emt 0:00:07]} 21. Be3 {[%emt 0:00:02]} Qc8 {[%emt 0:00:04]} (21... Qa3 $11) 22. Bd4 {[%emt 0:00:09]} (22. Na4 $1 $14 Nfd7 23. Rb4) 22... Nfd7 $1 $11 {[%emt 0:00:09][%cal Oe5f3,Bf6d7,Bd7c5,Bc5b3][%mdl 32]} 23. Qd1 {[%emt 0:01:19]} Nc5 {[%emt 0:00:06]} 24. f4 {[%emt 0:00:01][%cal Bf2f4,Bf4f5,Bf5g6,Bg6f7][%mdl 32]} Nb3 {[%emt 0:00:26]} 25. Bxe5 {[%emt 0:00:10]} (25. fxe5 $15 Nxd4 26. Qxd4) 25... dxe5 $17 {[%emt 0:00:03]} 26. f5 {[%emt 0:00:01]} Qc5+ {[%emt 0:00:08]} 27. Kh2 {[%emt 0:00:02]} Ra3 {[%emt 0:00:13]} (27... Nd4 $17 {Hoping for ...Bh6.} 28. Qc1 Kh7) 28. Bxh5 $2 {[%emt 0:00:08][%mdl 8192] [#]} Qe3 $4 {[%emt 0:00:07][%mdl 8192]} (28... gxh5 $19 {and all is fine.} 29. Nxh5 Bh6) 29. fxg6 $18 {[%emt 0:00:01]} ({Not} 29. Qf3 $2 Qf4 30. fxg6 fxg6 31. Bxg6 Nd2 32. Qxf4 exf4 $19) 29... Qxc3 $2 {[%emt 0:00:14]} (29... fxg6 30. Bxg6 Nd4) 30. gxf7+ {[%emt 0:00:18]} Kf8 {[%emt 0:00:04]} 31. Qg4 {[%emt 0:00:02] White threatens Nf5 and mate.} Nd2 {[%emt 0:00:09] [#]} 32. Nf5 $1 {[%emt 0:00:06][%csl Gf5][%cal Rg4g7]} Nf3+ {[%emt 0:00:12]} (32... Qg3+ 33. Nxg3) 33. Kh1 {[%emt 0:00:14] Weighted Error Value: White=0.38/Black=0.53} 1-0

[Event "Super United Croatia GCT Blitz 2022"]
[Site "Zagreb"]
[Date "2022.07.23"]
[Round "1"]
[White "Mamedyarov, Shakhriyar"]
[Black "So, Wesley"]
[Result "0-1"]
[ECO "D29"]
[WhiteElo "2759"]
[BlackElo "2773"]
[Annotator "TA"]
[PlyCount "54"]
[EventDate "2022.07.20"]
[EventType "tourn"]
[EventCountry "CRO"]
[SourceTitle "playchess.com"]
[Source "ChessBase"]
[SourceQuality "1"]
[TimeControl "300+2"]

{[%evp 22,54,-18,-22,-14,-27,-46,-64,-28,0,0,-129,-43,-204,-211,-202,-200,-199,-158,-159,-172,-358,-94,-444,-450,-533,-10,-499,-518,-508,-467,-843,-837,-798,-758]} 1. d4 {[%emt 0:00:00]} Nf6 {[%emt 0:00:01]} 2. c4 {[%emt 0:00:01]} e6 {[%emt 0:00:01]} 3. Nf3 {[%emt 0:00:01]} d5 {[%emt 0:00:01]} 4. Nc3 {[%emt 0:00:01]} c5 {[%emt 0:00:00]} 5. e3 {[%emt 0:00:02]} dxc4 {[%emt 0:00:02]} 6. Bxc4 {[%emt 0:00:00]} a6 {[%emt 0:00:01]} 7. O-O {[%emt 0:00:02]} b5 {[%emt 0:00:01]} 8. Bb3 {[%emt 0:00:01]} Bb7 {[%emt 0:00:03]} 9. Qe2 {[%emt 0:00:03]} Nbd7 {[%emt 0:00:15]} 10. Rd1 {[%emt 0:00:03]} Qc7 $1 {[%emt 0:00:29][%mdl 4] is now more promising than 10...Qb8.} 11. e4 {[%emt 0:00:19]} cxd4 {[%emt 0:00:17]} 12. Nxd4 {[%emt 0:00:15]} Bc5 {[%emt 0:00:01] D29: Queen's Gambit Accepted: Classical main line: 7 Qe2 with early ...Nbd7.} (12... b4 13. Na4) 13. Bxe6 {[%emt 0:00:13]} fxe6 {[%emt 0:00:18]} ({Don't play} 13... Bxd4 14. Bxd7+ Nxd7 15. Rxd4 $16) 14. Nxe6 {[%emt 0:00:01]} Qe5 {[%emt 0:00:21][%csl LRe4,LRe6] Black is slightly better.} 15. Nxg7+ {[%emt 0:00:11]} Kf7 {[%emt 0:00:01] [#]} 16. Nh5 $146 {[%emt 0:00:09] [#]} ({Predecessor:} 16. Nf5 Rad8 17. Bg5 b4 18. Qc4+ Kg6 19. Nh4+ Kg7 20. Nf5+ Kg6 21. Nh4+ {½-½ (21) Kosmo,S (2213)-Kononen,K (2247) Finland 2012}) 16... Rad8 $1 $17 {[%emt 0:00:09] Dancing on a razor blade. Black is more active.} 17. Ng3 {[%emt 0:00:12] [#]} (17. Nxf6 $1 $15 Nxf6 18. Be3) 17... h5 $1 $19 {[%emt 0:00:13][%cal Bh7h5,Bh5h4][%mdl 32] ...h4 is the strong threat.} 18. Be3 {[%emt 0:00:24]} h4 $40 {[%emt 0:00:02][%mdl 128] Black goes for the king.} 19. Nf5 {[%emt 0:00:01]} Nxe4 {[%emt 0:00:10]} 20. Qf3 {[%emt 0:00:15] White wants to mate with Nd6+.} Ndf6 {[%emt 0:00:12] And now ...Rxd1+ would win.} 21. Re1 {[%emt 0:00:19]} (21. Nh6+ {was worth a try.} Kg6 22. Rxd8 Rxd8 23. Ng4 Nxg4 24. Qxg4+ Ng5 25. Bxc5 Qxc5 26. Ne2) 21... b4 $2 {[%emt 0:00:23]} (21... Bxe3 $19 {has better winning chances.} 22. Nxe3 Nc5) 22. Bxc5 $4 {[%emt 0:00:25][%mdl 8192]} (22. Nxe4 $17 Bxe4 23. Bxc5 Qxf5 24. Qxf5 Bxf5 25. Bxb4) 22... bxc3 {[%emt 0:00:12]} 23. Ba3 {[%emt 0:00:09]} cxb2 {[%emt 0:00:35]} ({Black should play} 23... h3 $19 24. g4 Bd5 25. bxc3 Rdg8 26. Nd6+ Nxd6 27. Rxe5 Bxf3 28. Bxd6 Rxg4+ 29. Kf1 Rg2 30. Re7+ Kg6) 24. Rab1 $2 {[%emt 0:00:00][%mdl 8192]} (24. Bxb2 $11 Qxb2 25. Rab1) 24... Rd2 {[%emt 0:00:00] Black is clearly winning.} ({Stronger than} 24... Kg6 25. Ne7+ Kh6 26. Qe3+ Kh5 27. Qf3+ Kh6 28. Qe3+ Kh5 29. Qf3+ Kh6 $11) 25. h3 {[%emt 0:00:55]} Rh5 {[%emt 0:00:07]} ({Don't go for} 25... Kg6 $2 26. Ne7+ Kg7 27. Qf5 Qxf5 28. Nxf5+ Kg6 29. Ne7+ Kf7 30. Bxb2 $19) 26. Nd6+ {[%emt 0:00:27]} (26. Ne3 $142 Qc3 27. Ng4 Qxf3 28. gxf3 Nxg4 29. hxg4) 26... Nxd6 {[%emt 0:00:17]} 27. Qb3+ {[%emt 0:00:50]} Qd5 {[%emt 0:00:03] Weighted Error Value: White=1.30/Black=0.63} 0-1

[Event "Super United Croatia GCT Blitz 2022"]
[Site "Zagreb"]
[Date "2022.07.23"]
[Round "2"]
[White "So, Wesley"]
[Black "Firouzja, Alireza"]
[Result "1/2-1/2"]
[ECO "C67"]
[WhiteElo "2773"]
[BlackElo "2793"]
[Annotator "TA"]
[PlyCount "94"]
[EventDate "2022.07.20"]
[EventType "tourn"]
[EventCountry "CRO"]
[SourceTitle "playchess.com"]
[Source "ChessBase"]
[SourceQuality "1"]
[TimeControl "300+2"]

{[%evp 18,94,12,12,15,22,18,18,14,15,20,11,21,16,18,13,15,6,13,8,11,3,12,-10,8,10,8,7,8,8,8,10,6,0,2,6,6,5,10,10,11,10,33,0,3,0,0,0,0,0,0,0,0,0,0,0,0,0,0,0,0,0,0,0,0,0,0,0,0,0,0,0,0,0,0,0,0,0,0]} 1. e4 {[%emt 0:00:01]} e5 {[%emt 0:00:01]} 2. Nf3 {[%emt 0:00:02]} Nc6 {[%emt 0:00:01]} 3. Bb5 {[%emt 0:00:02]} Nf6 {[%emt 0:00:01]} 4. O-O {[%emt 0:00:02][%cal Bh1f1,Bf1e1,Be1e5][%mdl 32]} Nxe4 {[%emt 0:00:02]} 5. Re1 {[%emt 0:00:02]} Nd6 {[%emt 0:00:01]} 6. Nxe5 {[%emt 0:00:01]} Be7 {[%emt 0:00:02]} 7. Bf1 {[%emt 0:00:02]} Nxe5 {[%emt 0:00:01]} 8. Rxe5 {[%emt 0:00:01]} O-O {[%emt 0:00:02]} 9. d4 {[%emt 0:00:01]} Bf6 {[%emt 0:00:01]} 10. Re1 {[%emt 0:00:02]} Re8 {[%emt 0:00:02] C67: Ruy Lopez: Berlin Defence: 4 0-0 Nxe4.} 11. Bf4 {[%emt 0:00:05]} Rxe1 {[%emt 0:00:04]} 12. Qxe1 {[%emt 0:00:01]} Ne8 {[%emt 0:00:03]} 13. c3 {[%emt 0:00:01]} d5 {[%emt 0:00:03]} 14. Nd2 {[%emt 0:00:02]} Bf5 {[%emt 0:00:06]} 15. h3 {[%emt 0:00:11]} c6 {[%emt 0:00:13]} 16. Qe3 {[%emt 0:00:22]} Nd6 {[%emt 0:00:15]} 17. Re1 {[%emt 0:00:06] [#]} h6 $146 {[%emt 0:00:08]} ({Predecessor:} 17... Qd7 18. Qf3 Re8 19. Rxe8+ Nxe8 20. Qe3 a5 21. Nb3 b6 22. Nd2 h6 23. Nf3 Bb1 {½-½ (41) Biedermann,T (2489)-Pappier,C (2487) ICCF email 2019}) 18. Qg3 {[%emt 0:00:20]} Bh4 {[%emt 0:00:04]} 19. Qf3 {[%emt 0:00:02] [#] Hoping for Bxd6.} Bg5 {[%emt 0:00:17]} 20. g3 {[%emt 0:00:52]} Ne4 {[%emt 0:00:19]} 21. Nxe4 {[%emt 0:00:02]} Bxe4 {[%emt 0:00:02]} 22. Qe3 {[%emt 0:00:01]} Bxf4 {[%emt 0:01:13]} 23. Qxf4 {[%emt 0:00:02]} Qd7 {[%emt 0:00:05]} 24. f3 {[%emt 0:00:16]} Bg6 {[%emt 0:00:19]} 25. h4 {[%emt 0:00:18]} Re8 {[%emt 0:00:23]} 26. Rxe8+ {[%emt 0:00:26]} Qxe8 $11 {[%emt 0:00:01][%mdl 4096] Endgame KQB-KQB} 27. Kf2 {[%emt 0:00:02] Against Qe1+} Qd8 {[%emt 0:00:10] Inhibits Qc7.} 28. a3 {[%emt 0:00:27]} f6 {[%emt 0:00:09]} 29. Bh3 {[%emt 0:00:06]} Bf7 {[%emt 0:00:39]} (29... Kf7 {keeps more tension.} 30. Ke3 Kf8 31. Bg4 Bf7) 30. Bf5 {[%emt 0:00:09]} g5 {[%emt 0:00:02] The position is equal.} 31. hxg5 {[%emt 0:00:19]} hxg5 {[%emt 0:00:01]} 32. Qc1 {[%emt 0:00:13]} Qe8 {[%emt 0:00:14]} 33. f4 {[%emt 0:00:20]} Bg6 {[%emt 0:00:04]} 34. Qc2 {[%emt 0:00:06]} Bxf5 {[%emt 0:00:04]} 35. Qxf5 {[%emt 0:00:01]} gxf4 {[%emt 0:00:02]} 36. Qxf4 {[%emt 0:00:07] KQ-KQ} Kg7 {[%emt 0:00:25]} 37. Qc7+ {[%emt 0:00:13]} Qf7 {[%emt 0:00:02]} 38. Qxf7+ {[%emt 0:00:01]} Kxf7 {[%emt 0:00:01] KP-KP} 39. Kf3 {[%emt 0:00:01]} Kg6 {[%emt 0:00:08]} 40. Kf4 {[%emt 0:00:02]} b5 {[%emt 0:00:09]} 41. b4 {[%emt 0:00:23]} a6 {[%emt 0:00:12]} 42. g4 {[%emt 0:00:13]} Kg7 {[%emt 0:00:02]} 43. g5 {[%emt 0:00:04]} Kg6 {[%emt 0:00:01]} 44. gxf6 {[%emt 0:00:01]} Kxf6 {[%emt 0:00:01]} 45. Kg4 {[%emt 0:00:01]} Kg6 {[%emt 0:00:01]} 46. Kf4 {[%emt 0:00:01] [#] Threatening mate with Ke5.} Kf6 {[%emt 0:00:00]} 47. Kg4 {[%emt 0:00:00]} Kg6 {[%emt 0:00:01] Not much happened in this game.  Weighted Error Value: White=0.02 (flawless) /Black=0.02 (flawless)} 1/2-1/2